fUST/lending_fUST_20250130
["ID","MTS","AMOUNT","RATE_DAILY","PERIOD"]
[350956809,1738243844891,-25.8653828,0.0002,2]
[350956810,1738243844902,-7487.46205713,0.0002,2]
[350956811,1738243844914,-406048.7921678,0.0002,2]
[350956812,1738243844924,-3012.93,0.0002,2]
[350956813,1738243844933,-3596.54,0.0002,2]
[350956814,1738243844943,-509.33,0.0002,2]
[350956815,1738243844954,-160.0,0.0002,3]
[350956816,1738243844964,-153.6,0.000204,31]
[350956817,1738243844974,-153.6,0.000204,31]
[350956818,1738243844986,-153.6,0.000204,31]
[350956819,1738243844995,-207.208621,0.00020447,2]
[350956820,1738243845006,-208.25279113,0.000209,2]
[350956821,1738243845016,-438.442014,0.00020935,2]
[350956822,1738243845025,-438.442014,0.00020935,2]
[350956823,1738243845035,-151.0,0.00020935,2]
[350956824,1738243845045,-484768.26239207,0.00020935,15]
[350956825,1738243845057,-176189.13760793,0.00020935,15]
[350956826,1738243845067,-150.0,0.00021,2]
[350956827,1738243845076,-154.097,0.0002117,2]
[350956828,1738243845087,-160.0,0.0002125,2]
[350956829,1738243845097,-354.3389743,0.0002126,2]
[350956830,1738243845242,-354.3389743,0.0002126,2]
[350956831,1738243845253,-354.3389743,0.0002126,2]
[350956832,1738243845262,-353.9062219,0.0002126,2]
[350956833,1738243845274,-499.51014698,0.00021288,2]
[350956834,1738243845283,-532.8,0.0002136,3]
[350956835,1738243845293,-499.0,0.00021369,4]
[350956836,1738243845303,-153.0,0.00021397,2]
[350956837,1738243845312,-153.0,0.00021397,2]
[350956838,1738243845322,-260.2748126,0.00021397,2]
[350956839,1738243845332,-154.3747797,0.00021397,2]
[350956840,1738243845342,-153.0,0.00021397,2]
[350956841,1738243845351,-215.5255313,0.00021397,2]
[350956842,1738243845360,-154.3747797,0.00021397,2]
[350956843,1738243845370,-154.3747797,0.00021397,2]
[350956844,1738243845379,-153.0,0.00021397,2]
[350956845,1738243845388,-153.0,0.00021397,2]
[350956846,1738243845398,-215.5255313,0.00021397,2]
[350956847,1738243845407,-154.3747797,0.00021397,2]
[350956848,1738243845417,-153.0,0.00021397,2]
[350956849,1738243845426,-215.5255313,0.00021397,2]
[350956850,1738243845436,-215.5255313,0.00021397,2]
[350956851,1738243845445,-154.3747797,0.00021397,2]
[350956852,1738243845455,-153.0,0.00021397,2]
[350956853,1738243845466,-153.0,0.00021397,2]
[350956854,1738243845478,-154.3747797,0.00021397,2]
[350956855,1738243845488,-153.0,0.00021397,2]
[350956856,1738243845497,-154.3747797,0.00021397,2]
[350956857,1738243845506,-154.3747797,0.00021397,2]
[350956858,1738243845515,-153.0,0.00021397,2]
[350956859,1738243845524,-153.9017258,0.00021397,2]
[350956860,1738243845535,-10685.0,0.000216,4]
[350956861,1738243845545,-420.0,0.00021776,2]
[350956862,1738243845555,-153.6,0.000219,31]
[350956863,1738243845564,-153.6,0.000219,31]
[350956864,1738243845574,-500.0,0.00021917,7]
[350956865,1738243845583,-295.26389003,0.00021918,2]
[350956866,1738243845593,-170.0,0.00022,120]
[350956867,1738243845603,-1000.0,0.00022,22]
[350956868,1738243845612,-150.0,0.00022,2]
[350956869,1738243845622,-317.0,0.00022,2]
[350956870,1738243845632,-153.0,0.00022016,3]
[350956871,1738243845642,-153.0,0.00022016,3]
[350956872,1738243845652,-153.0,0.00022016,3]
[350956873,1738243845662,-153.0,0.00022016,3]
[350956874,1738243845671,-153.0,0.00022016,3]
[350956875,1738243845681,-153.0,0.00022016,3]
[350956876,1738243845690,-153.0,0.00022016,3]
[350956877,1738243845699,-153.0,0.00022016,3]
[350956878,1738243845709,-153.0,0.00022016,3]
[350956879,1738243845719,-151.0,0.00022016,3]
[350956880,1738243845732,-153.0,0.00022016,3]
[350956881,1738243845742,-153.0,0.00022016,3]
[350956882,1738243845752,-151.0,0.00022016,3]
[350956883,1738243845761,-153.0,0.00022016,3]
[350956884,1738243845771,-151.0,0.00022016,3]
[350956885,1738243845781,-153.0,0.00022016,3]
[350956886,1738243845790,-151.0,0.00022016,3]
[350956887,1738243845800,-151.0,0.00022016,3]
[350956888,1738243845810,-153.0,0.00022016,3]
[350956889,1738243845819,-151.0,0.00022016,3]
[350956890,1738243845828,-153.0,0.00022016,3]
[350956891,1738243845838,-151.0,0.00022016,3]
[350956892,1738243845848,-153.0,0.00022016,3]
[350956893,1738243845858,-151.0,0.00022016,3]
[350956894,1738243845869,-153.0,0.00022016,3]
[350956895,1738243845879,-151.0,0.00022016,3]
[350956896,1738243845892,-153.0,0.00022016,3]
[350956897,1738243845902,-151.0,0.00022016,3]
[350956898,1738243845911,-169.76,0.00022016,3]
[350956899,1738243845923,-151.0,0.00022016,3]
[350956900,1738243845932,-151.0,0.00022016,3]
[350956901,1738243845942,-151.0,0.00022016,3]
[350956902,1738243845951,-151.0,0.00022016,3]
[350956903,1738243845962,-151.0,0.00022016,3]
[350956904,1738243845971,-151.0,0.00022016,3]
[350956905,1738243845982,-151.0,0.00022016,3]
[350956906,1738243845992,-151.0,0.00022016,3]
[350956907,1738243846001,-266.0,0.00022016,3]
[350956908,1738243846011,-151.0,0.00022021,3]
[350956909,1738243846021,-151.0,0.00022021,3]
[350956910,1738243846030,-151.0,0.00022021,3]
[350956911,1738243846039,-151.0,0.00022021,3]
[350956912,1738243846050,-151.0,0.00022021,3]
[350956913,1738243846060,-151.0,0.00022021,3]
[350956914,1738243846069,-201.26,0.00022021,3]
[350956915,1738243846078,-317.0,0.00022192,2]
[350956916,1738243846088,-151.0,0.00022206,7]
[350956918,1738243846098,-151.832364,0.00022206,7]
[350956920,1738243846108,-151.0,0.00022206,7]
[350956921,1738243846117,-151.0,0.00022206,7]
[350956923,1738243846127,-151.0,0.00022206,7]
[350956925,1738243846137,-151.0,0.00022206,7]
[350956927,1738243846146,-151.0,0.00022206,7]
[350956929,1738243846155,-247.16194,0.00022206,7]
[350956931,1738243846165,-151.0,0.00022206,7]
[350956933,1738243846174,-151.0,0.00022206,7]
[350956934,1738243846184,-158.486659,0.00022206,7]
[350956935,1738243846194,-151.0,0.00022206,7]
[350956936,1738243846203,-151.0,0.00022206,7]
[350956937,1738243846212,-151.0,0.00022206,7]
[350956939,1738243846222,-219.692716,0.00022206,7]
[350956941,1738243846234,-151.0,0.00022206,7]
[350956942,1738243846244,-188.25492,0.00022206,7]
[350956943,1738243846254,-154.42,0.00022206,2]
[350956944,1738243846264,-151.0,0.00022208,7]
[350956945,1738243846273,-151.0,0.00022208,7]
[350956947,1738243846282,-151.0,0.00022208,7]
[350956949,1738243846292,-151.0,0.00022208,7]
[350956951,1738243846301,-151.0,0.00022208,7]
[350956953,1738243846311,-151.0,0.00022208,7]
[350956955,1738243846321,-151.0,0.00022208,7]
[350956957,1738243846331,-151.0,0.00022208,7]
[350956960,1738243846341,-151.0,0.00022208,7]
[350956963,1738243846351,-151.281249,0.00022209,7]
[350956964,1738243846360,-151.0,0.00022209,7]
[350956965,1738243846370,-151.0,0.00022209,7]
[350956966,1738243846379,-151.0,0.00022209,7]
[350956967,1738243846390,-178.103552,0.00022209,7]
[350956968,1738243846399,-151.993337,0.00022209,7]
[350956969,1738243846408,-151.0,0.00022209,7]
[350956970,1738243846418,-151.0,0.00022209,7]
[350956971,1738243846428,-151.0,0.00022209,7]
[350956972,1738243846440,-249.913176,0.00022209,7]
[350956973,1738243846450,-151.0,0.00022209,7]
[350956975,1738243846459,-151.0,0.00022209,7]
[350956977,1738243846469,-151.0,0.00022209,7]
[350956979,1738243846482,-151.0,0.00022209,7]
[350956980,1738243846491,-154.019339,0.00022209,7]
[350956981,1738243846500,-151.0,0.00022209,7]
[350956982,1738243846510,-151.0,0.00022209,7]
[350956983,1738243846519,-151.0,0.00022209,7]
[350956984,1738243846529,-276.366139,0.00022209,7]
[350956985,1738243846538,-151.0,0.00022209,7]
[350956986,1738243846548,-151.0,0.00022209,7]
[350956987,1738243846558,-151.0,0.00022209,7]
[350956988,1738243846568,-151.0,0.00022209,7]
[350956990,1738243846578,-151.0,0.00022209,7]
[350956992,1738243846588,-151.0,0.00022209,7]
[350956993,1738243846597,-151.0,0.00022209,7]
[350956994,1738243846607,-250.086905,0.00022209,7]
[350956995,1738243846617,-151.0,0.00022209,7]
[350956996,1738243846627,-151.0,0.00022209,7]
[350956998,1738243846636,-151.0,0.00022209,7]
[350957000,1738243846646,-151.0,0.00022209,7]
[350957001,1738243846655,-151.0,0.00022209,7]
[350957002,1738243846665,-188.797144,0.00022209,7]
[350957003,1738243846674,-151.0,0.00022209,7]
[350957004,1738243846683,-151.0,0.00022209,7]
[350957005,1738243846692,-151.0,0.00022209,7]
[350957006,1738243846701,-151.0,0.00022209,7]
[350957007,1738243846710,-259.21925,0.00022209,7]
[350957008,1738243846719,-231.493511,0.00022209,7]
[350957009,1738243846732,-231.493511,0.00022209,7]
[350957010,1738243846743,-231.493511,0.00022209,7]
[350957011,1738243846753,-231.493511,0.00022209,7]
[350957012,1738243846762,-231.493511,0.00022209,7]
[350957013,1738243846772,-231.493511,0.00022209,7]
[350957014,1738243846781,-231.493511,0.00022209,7]
[350957015,1738243846791,-231.493511,0.00022209,7]
[350957016,1738243846800,-231.493511,0.00022209,7]
[350957017,1738243846810,-231.493511,0.00022209,7]
[350957018,1738243846819,-231.493511,0.00022209,7]
[350957019,1738243846829,-231.493511,0.00022209,7]
[350957020,1738243846838,-231.493511,0.00022209,7]
[350957021,1738243846848,-231.493511,0.00022209,7]
[350957022,1738243846857,-231.493511,0.00022209,7]
[350957023,1738243846867,-231.493511,0.00022209,7]
[350957024,1738243846881,-231.493511,0.00022209,7]
[350957025,1738243846891,-231.493511,0.00022209,7]
[350957026,1738243846901,-231.493511,0.00022209,7]
[350957027,1738243846910,-231.493511,0.00022209,7]
[350957028,1738243846920,-151.0,0.00022209,7]
[350957029,1738243846930,-151.0,0.00022209,7]
[350957030,1738243846939,-151.0,0.00022209,7]
[350957031,1738243846947,-201.428535,0.00022209,7]
[350957032,1738243846958,-151.0,0.00022209,7]
[350957033,1738243846968,-151.0,0.00022209,7]
[350957034,1738243846983,-151.0,0.00022209,7]
[350957035,1738243846993,-151.0,0.00022209,7]
[350957036,1738243847003,-151.0,0.00022209,7]
[350957037,1738243847012,-151.0,0.00022209,7]
[350957038,1738243847022,-167.644444,0.00022209,7]
[350957039,1738243847032,-438.442014,0.00022209,7]
[350957040,1738243847041,-438.442014,0.00022209,7]
[350957041,1738243847050,-438.442014,0.00022209,7]
[350957042,1738243847061,-438.442014,0.00022209,7]
[350957043,1738243847070,-438.442014,0.00022209,7]
[350957044,1738243847079,-438.442014,0.00022209,7]
[350957045,1738243847089,-438.442014,0.00022209,7]
[350957046,1738243847099,-438.442014,0.00022209,7]
[350957047,1738243847110,-438.442014,0.00022209,7]
[350957048,1738243847120,-438.442014,0.00022209,7]
[350957049,1738243847129,-438.442014,0.00022209,7]
[350957050,1738243847139,-438.442014,0.00022209,7]
[350957051,1738243847148,-438.442014,0.00022209,7]
[350957052,1738243847157,-438.442014,0.00022209,7]
[350957053,1738243847166,-438.442014,0.00022209,7]
[350957054,1738243847176,-438.442014,0.00022209,7]
[350957055,1738243847185,-438.442014,0.00022209,7]
[350957056,1738243847195,-438.442024,0.00022209,7]
[350957057,1738243847204,-151.0,0.00022209,7]
[350957058,1738243847214,-151.0,0.00022209,7]
[350957059,1738243847223,-151.0,0.00022209,7]
[350957060,1738243847237,-151.0,0.00022209,7]
[350957061,1738243847247,-151.0,0.00022209,7]
[350957062,1738243847256,-180.25312,0.00022209,7]
[350957063,1738243847266,-160.0,0.00022209,7]
[350957064,1738243847275,-4019459.40636811,0.00022209,61]
[350957068,1738244377217,198.632761,0.00013973,2]
[350957069,1738244421391,50649.70680196,0.000205,120]
[350957071,1738244735150,-1601.22068046,0.00016703,2]
[350957074,1738244825578,-4740.998607,0.00016536,2]
[350957075,1738244825602,-300.0,0.00016702,2]
[350957076,1738244825624,-4811.6158387,0.00016703,2]
[350957077,1738244830124,-1629.90055472,0.00016703,2]
[350957078,1738244957127,-5459.32106882,0.00016703,2]
[350957079,1738244957154,-170.52919937,0.00017098,2]
[350957080,1738244957177,-568.07534976,0.00017441,2]
[350957081,1738244957202,-551.25753083,0.00017441,2]
[350957082,1738244957226,-500.0,0.00017499,2]
[350957083,1738244957250,-300.0,0.00017499,2]
[350957084,1738244957275,-15697.83886476,0.000175,2]
[350957085,1738244957299,-500.0,0.0001754,2]
[350957086,1738244957322,-500.0,0.0001754,2]
[350957087,1738244957349,-500.04,0.0001754,2]
[350957088,1738244957372,-500.0,0.0001754,2]
[350957089,1738244957395,-500.0,0.0001754,2]
[350957090,1738244957420,-500.0,0.0001754,2]
[350957091,1738244957445,-500.0,0.0001754,2]
[350957092,1738244957469,-500.0,0.0001754,2]
[350957093,1738244957492,-500.0,0.0001754,2]
[350957094,1738244957516,-500.0,0.0001754,2]
[350957095,1738244957538,-500.0,0.00017541,2]
[350957096,1738244957560,-500.0,0.00017541,2]
[350957097,1738244957582,-500.0,0.00017541,2]
[350957098,1738244957603,-274.31512796,0.00017541,2]
[350957099,1738244957624,-500.0,0.00017541,2]
[350957100,1738244957645,-500.0,0.00017541,2]
[350957101,1738244957666,-484.61315533,0.00017541,2]
[350957102,1738244957688,-500.0,0.00017541,2]
[350957103,1738244957709,-413.64,0.00017541,2]
[350957104,1738244957731,-500.0,0.00017541,2]
[350957105,1738244957752,-500.0,0.00017541,2]
[350957106,1738244957778,-523.90328316,0.00017541,2]
[350957107,1738244957800,-500.0,0.00017541,2]
[350957108,1738244957822,-500.0,0.00017541,2]
[350957109,1738244957844,-500.0,0.00017541,2]
[350957110,1738244957867,-342.35,0.00017677,2]
[350957111,1738244957892,-500.0,0.00017677,2]
[350957112,1738244957916,-500.0,0.00017677,2]
[350957113,1738244957940,-500.0,0.00017677,2]
[350957114,1738244957964,-500.0,0.00017677,2]
[350957115,1738244957988,-500.0,0.00017677,2]
[350957116,1738244958012,-469.7,0.00017814,2]
[350957117,1738244958036,-500.0,0.00017814,2]
[350957118,1738244958060,-559.16,0.00017814,2]
[350957119,1738244958085,-500.0,0.00017814,2]
[350957120,1738244958109,-500.0,0.00017814,2]
[350957121,1738244958131,-150.0,0.000179,2]
[350957122,1738244958158,-566.57,0.00017951,2]
[350957123,1738244958183,-457.64,0.00017951,2]
[350957124,1738244958207,-175.57,0.00017951,2]
[350957125,1738244958232,-500.0,0.00018089,2]
[350957126,1738244958256,-501.87374234,0.00018089,2]
[350957127,1738244958283,-204.47443416,0.00018089,2]
[350957128,1738244958321,-295.52556584,0.00018089,2]
[350957129,1738244958345,-500.0,0.00018089,2]
[350957130,1738244958369,-500.0,0.00018089,2]
[350957131,1738244958392,-500.0,0.00018089,2]
[350957132,1738244958416,-500.0,0.00018089,2]
[350957133,1738244958442,-500.0,0.00018089,2]
[350957134,1738244958466,-500.0,0.00018089,2]
[350957135,1738244958494,-500.0,0.00018089,2]
[350957136,1738244958519,-500.0,0.00018089,2]
[350957137,1738244958546,-500.0,0.00018089,2]
[350957138,1738244958568,-500.0,0.00018089,2]
[350957139,1738244958591,-500.0,0.00018089,2]
[350957140,1738244958615,-500.0,0.00018089,2]
[350957141,1738244958637,-500.0,0.00018089,2]
[350957142,1738244958660,-500.0,0.00018089,2]
[350957143,1738244958684,-500.0,0.00018089,2]
[350957144,1738244958707,-500.0,0.00018089,2]
[350957145,1738244958732,-500.0,0.00018089,2]
[350957146,1738244958756,-526.90165557,0.00018089,2]
[350957147,1738244958780,-500.0,0.00018089,2]
[350957148,1738244958804,-308.78431203,0.00018089,2]
[350957149,1738244958828,-500.0,0.00018089,2]
[350957150,1738244958851,-500.0,0.00018089,2]
[350957151,1738244958874,-500.0,0.00018089,2]
[350957152,1738244958897,-167.88106549,0.00018089,2]
[350957153,1738244958922,-500.0,0.00018089,2]
[350957154,1738244958946,-500.0,0.00018089,2]
[350957155,1738244958969,-500.0,0.00018089,2]
[350957156,1738244958996,-500.0,0.00018089,2]
[350957157,1738244959021,-1105.32,0.00018089,2]
[350957158,1738244959045,-500.0,0.00018089,2]
[350957159,1738244959069,-291.0,0.00018207,2]
[350957160,1738244959093,-500.0,0.00018226,2]
[350957161,1738244959118,-500.0,0.00018226,2]
[350957162,1738244959143,-526.9,0.00018226,2]
[350957163,1738244959168,-222.28,0.00018226,2]
[350957164,1738244959192,-500.0,0.00018226,2]
[350957165,1738244959215,-500.0,0.00018226,2]
[350957166,1738244959240,-500.0,0.00018226,2]
[350957167,1738244959269,-163.91,0.00018226,2]
[350957168,1738244959294,-205.32,0.00018226,2]
[350957169,1738244959320,-217.13,0.00018226,2]
[350957170,1738244959345,-500.0,0.00018226,2]
[350957171,1738244959371,-1105.32,0.00018226,2]
[350957172,1738244959396,-500.0,0.00018226,2]
[350957173,1738244959421,-500.0,0.00018363,2]
[350957174,1738244959446,-500.0,0.00018363,2]
[350957175,1738244959471,-500.0,0.00018363,2]
[350957176,1738244959622,-500.0,0.00018363,2]
[350957177,1738244959650,-529.7,0.00018363,2]
[350957178,1738244959676,-500.0,0.00018363,2]
[350957179,1738244959702,-1105.32,0.00018363,2]
[350957180,1738244959726,-500.0,0.00018363,2]
[350957181,1738244959750,-500.0,0.000185,2]
[350957182,1738244959774,-500.0,0.000185,2]
[350957183,1738244959799,-500.0,0.000185,2]
[350957184,1738244959824,-529.7,0.000185,2]
[350957185,1738244959848,-1105.32,0.000185,2]
[350957186,1738244959872,-500.0,0.000185,2]
[350957187,1738244959894,-154.42,0.000186,2]
[350957188,1738244959916,-500.0,0.00018637,2]
[350957189,1738244959940,-500.0,0.00018637,2]
[350957190,1738244959965,-529.7,0.00018637,2]
[350957191,1738244959988,-1105.32,0.00018637,2]
[350957192,1738244960012,-500.0,0.00018637,2]
[350957193,1738244960035,-500.0,0.00018774,2]
[350957194,1738244960060,-500.0,0.00018774,2]
[350957195,1738244960085,-529.7,0.00018774,2]
[350957196,1738244960109,-1105.32,0.00018774,2]
[350957197,1738244960134,-503.13,0.00018774,2]
[350957198,1738244960157,-331.52,0.00018911,2]
[350957199,1738244960185,-500.0,0.00018911,2]
[350957200,1738244960218,-529.7,0.00018911,2]
[350957201,1738244960245,-1105.32,0.00018911,2]
[350957202,1738244960273,-500.0,0.00019048,2]
[350957203,1738244960299,-529.7,0.00019048,2]
[350957204,1738244960324,-1105.32,0.00019048,2]
[350957205,1738244960348,-420.0,0.00019103,2]
[350957206,1738244960373,-500.0,0.00019178,7]
[350957207,1738244960396,-237.808289,0.00019178,2]
[350957208,1738244960421,-225.29224769,0.00019185,2]
[350957209,1738244960448,-529.7,0.00019185,2]
[350957210,1738244960473,-1105.32,0.00019185,2]
[350957211,1738244960501,-529.7,0.00019322,2]
[350957212,1738244960527,-1105.32,0.00019322,2]
[350957213,1738244960553,-529.7,0.00019459,2]
[350957214,1738244960578,-1105.32,0.00019459,2]
[350957215,1738244960607,-529.7,0.00019596,2]
[350957216,1738244960632,-1105.32,0.00019596,2]
[350957217,1738244960659,-529.7,0.00019733,2]
[350957218,1738244960684,-1105.32,0.00019733,2]
[350957219,1738244960707,-500.0,0.00019863,9]
[350957220,1738244960732,-529.7,0.0001987,2]
[350957221,1738244960755,-1105.32,0.0001987,2]
[350957222,1738244960777,-208.25279113,0.000199,2]
[350957223,1738244962106,-529.7,0.00020007,2]
[350957224,1738244962128,-1105.32,0.00020007,2]
[350957226,1738244985514,500.0,0.00018363,2]
[350957227,1738244985778,500.0,0.000185,2]
[350957228,1738244986056,500.0,0.00018637,2]
[350957229,1738244986325,500.0,0.00018774,2]
[350957230,1738244986666,500.0,0.00018911,2]
[350957231,1738244986894,500.0,0.00019048,2]
[350957232,1738244987886,500.0,0.00019185,2]
[350957233,1738244988164,500.0,0.00019322,2]
[350957234,1738244988479,500.0,0.00019459,2]
[350957235,1738244988747,409.51,0.00019596,2]
[350957236,1738244992583,262.21780687,0.000189,2]
[350957262,1738245032057,-529.7,0.00020144,2]
[350957264,1738245032067,-1105.32,0.00020144,2]
[350957266,1738245032077,-395.0,0.0002015,2]
[350957268,1738245032086,-529.7,0.00020281,2]
[350957270,1738245032099,-1105.32,0.00020281,2]
[350957272,1738245032108,-1200.0,0.00020329,2]
[350957274,1738245032118,-300.0,0.00020417,2]
[350957276,1738245032128,-529.7,0.00020418,2]
[350957278,1738245032138,-1105.32,0.00020418,2]
[350957280,1738245032147,-198.632761,0.00020447,2]
[350957282,1738245032157,-529.7,0.00020555,2]
[350957284,1738245032166,-1105.32,0.00020555,2]
[350957286,1738245032176,-529.7,0.00020692,2]
[350957288,1738245032186,-1105.32,0.00020692,2]
[350957290,1738245032196,-529.7,0.00020829,2]
[350957306,1738245032333,-1105.32,0.00020829,2]
[350957308,1738245032347,-529.7,0.00020966,2]
[350957310,1738245032356,-1105.32,0.00020966,2]
[350957312,1738245032368,-529.7,0.00021103,2]
[350957314,1738245032378,-1105.32,0.00021103,2]
[350957316,1738245032387,-153.943,0.0002116,2]
[350957318,1738245032397,-529.7,0.0002124,2]
[350957320,1738245032406,-1105.53736464,0.0002124,2]
[350957322,1738245032416,-153.5,0.000213,31]
[350957323,1738245032425,-153.5,0.000213,31]
[350957325,1738245032435,-153.5,0.000213,31]
[350957328,1738245032445,-153.5,0.000213,31]
[350957329,1738245032455,-153.5,0.000213,31]
[350957331,1738245032465,-153.5,0.000213,31]
[350957333,1738245032474,-160.0,0.00021347,120]
[350957335,1738245032484,-529.7,0.00021377,2]
[350957337,1738245032493,-261.8106774,0.00021478,2]
[350957339,1738245032503,-529.83,0.00021514,2]
[350957341,1738245032512,-1441.55289668,0.0002162,120]
[350957343,1738245032521,-160.0,0.00021744,2]
[350957345,1738245032530,-295.91972858,0.00021918,2]
[350957347,1738245032539,-16092.70786512,0.00021989,2]
[350957416,1738245037813,-3544.94349059,0.00021989,2]
[350957480,1738245039804,-406.7794728,0.00021989,2]
[350957484,1738245039864,-2544.4281108,0.00021989,2]
[350957486,1738245039874,-652.68,0.0002199,3]
[350957488,1738245039883,-79.59188918,0.00021999,2]
[350957500,1738245039998,-192.95482612,0.00021999,2]
[350957502,1738245040007,-499.0,0.00021999,2]
[350957504,1738245040016,-2002.37773569,0.00022,30]
[350957506,1738245040028,-322.7,0.00022,30]
[350957509,1738245040039,-3302.47134826,0.00022,30]
[350957584,1738245042958,-1558.46047917,0.00022,30]
[350957596,1738245046054,-1094.73493841,0.00022,30]
[350957597,1738245049540,160.0,0.0002,3]
[350957598,1738245103826,150.0,0.000181,2]
[350957600,1738245249009,178.769484,0.00013973,2]
[350957602,1738245568688,649.19,0.0001514,2]
[350957605,1738245857310,10000.0,0.00018,30]
[350957607,1738245874008,9584.0,0.00018,30]
[350957611,1738245953376,-500.0,0.00017499,2]
[350957612,1738245953399,-500.0,0.00017499,2]
[350957613,1738245953421,-500.0,0.00017499,2]
[350957614,1738245953443,-300.0,0.00017539,2]
[350957615,1738245953464,-280.0,0.0001754,2]
[350957616,1738245953485,-296.35118999,0.0001754,2]
[350957617,1738245953505,-260.0835035,0.0001754,2]
[350957622,1738246028108,-461.734703,0.00017365,2]
[350957623,1738246028134,-300.0,0.00017539,2]
[350957624,1738246028159,-190.10829217,0.0001754,2]
[350957625,1738246028186,-18.3282198,0.0001754,2]
[350957626,1738246032097,-481.6717802,0.0001754,2]
[350957627,1738246032122,-314.93606839,0.0001754,2]
[350957628,1738246149131,-300.0,0.00017365,2]
[350957629,1738246149152,-185.06393161,0.0001754,2]
[350957630,1738246149174,-497.49593106,0.0001754,2]
[350957631,1738246149195,-250.31600294,0.0001754,2]
[350957632,1738246149216,-500.0,0.0001754,2]
[350957633,1738246149239,-437.69418435,0.00017541,2]
[350957634,1738246149272,-502.61539211,0.000176,2]
[350957635,1738246149298,-162.58481795,0.000176,2]
[350957636,1738246149319,-500.0,0.00017677,2]
[350957637,1738246149343,-500.0,0.00017814,2]
[350957638,1738246149369,-500.0,0.00017951,2]
[350957639,1738246149394,-300.0,0.00018087,2]
[350957640,1738246149419,-500.0,0.00018088,2]
[350957641,1738246149444,-500.0,0.00018225,2]
[350957642,1738246149472,-500.0,0.00018362,2]
[350957643,1738246149496,-500.0,0.00018499,2]
[350957644,1738246149522,-500.0,0.00018636,2]
[350957645,1738246149546,-299.2648731,0.00018773,2]
[350957646,1738246164099,-200.7351269,0.00018773,2]
[350957647,1738246164119,-500.0,0.0001891,2]
[350957648,1738246164140,-500.0,0.00019047,2]
[350957649,1738246164160,-500.0,0.00019184,2]
[350957650,1738246164181,-500.0,0.00019321,2]
[350957651,1738246164200,-500.0,0.00019458,2]
[350957652,1738246164221,-531.60008817,0.00019595,2]
[350957653,1738246164242,-420.0,0.00019733,2]
[350957654,1738246164263,-174.81187125,0.000199,2]
[350957655,1738246164282,-9769.0,0.0002,2]
[350957657,1738246191451,192.329627,0.00013973,2]
[350957658,1738246198702,150.0,0.000189,2]
[350957698,1738246232221,-192.329627,0.00020447,2]
[350957700,1738246232231,-395.0,0.0002064,2]
[350957702,1738246232240,-3000.0,0.00021,2]
[350957704,1738246232250,-5754.431131,0.0002101,2]
[350957706,1738246232260,-153.691,0.000211,2]
[350957708,1738246232269,-300.0,0.00021299,2]
[350957710,1738246232278,-153.56,0.000213,31]
[350957713,1738246232288,-153.56,0.000213,31]